fUST/lending_fUST_20250210
["ID","MTS","AMOUNT","RATE_DAILY","PERIOD"]
[352553016,1739164045093,-356.62998153,9.878e-05,2]
[352553017,1739164051095,-2623.32631576,9.878e-05,2]
[352553018,1739164051117,-281.31078608,9.978e-05,2]
[352553019,1739164051138,-300.0,0.00010069,2]
[352553020,1739164051158,-1845.30048415,0.0001007,2]
[352553022,1739164148103,-6084.50681532,0.0001007,2]
[352553023,1739164159223,-172.97991273,0.0001007,2]
[352553024,1739164159246,-382.70948727,0.00010685,2]
[352553070,1739164232671,-17.29051273,0.00010685,2]
[352553072,1739164232684,-300.0,0.00010957,2]
[352553073,1739164232694,-200.82892225,0.00010957,2]
[352553075,1739164232703,-500.0,0.00010957,2]
[352553077,1739164232713,-383.16301538,0.00010957,2]
[352553079,1739164232723,-500.0,0.00010957,2]
[352553081,1739164232732,-441.01754964,0.00010958,2]
[352553083,1739164232744,-61.66107503,0.00010958,2]
[352553085,1739164232753,-259.40022541,0.00010958,2]
[352553087,1739164232765,-328.50623434,0.00010958,2]
[352553088,1739164232774,-504.21438973,0.00010958,2]
[352553090,1739164232784,-501.98984264,0.00010958,2]
[352553092,1739164232793,-500.0,0.00010958,2]
[352553094,1739164232803,-500.0,0.00010958,2]
[352553096,1739164232812,-554.56489618,0.00010958,2]
[352553097,1739164232820,-500.0,0.00010958,2]
[352553099,1739164232830,-500.0,0.00010958,2]
[352553101,1739164232839,-500.0,0.00010958,2]
[352553103,1739164232848,-500.0,0.00010958,2]
[352553105,1739164232857,-309.35421239,0.00010958,2]
[352553107,1739164232869,-190.64578761,0.00010958,2]
[352553109,1739164232880,-500.0,0.00010958,2]
[352553111,1739164232890,-192.81024183,0.00010958,2]
[352553441,1739164238551,-307.18975817,0.00010958,2]
[352553442,1739164238561,-500.0,0.00010958,2]
[352553443,1739164238571,-310.30949321,0.00010958,2]
[352553444,1739164238581,-502.18440947,0.00010958,2]
[352553445,1739164238591,-500.18307923,0.00010958,2]
[352553446,1739164238601,-500.0,0.00010958,2]
[352553447,1739164238610,-500.0,0.00010958,2]
[352553448,1739164238620,-509.67266583,0.00010958,2]
[352553449,1739164238631,-503.32702649,0.00010958,2]
[352553450,1739164238641,-500.0,0.00010958,2]
[352553451,1739164238651,-563.42753114,0.00010958,2]
[352553452,1739164238661,-203.71068915,0.00010958,2]
[352553453,1739164238671,-500.0,0.00010958,2]
[352553454,1739164238680,-500.0,0.00010958,2]
[352553455,1739164238689,-516.78,0.00010958,2]
[352553456,1739164238698,-344.80364924,0.00010958,2]
[352553457,1739164238709,-500.0,0.00010958,2]
[352553458,1739164238719,-500.0,0.00010958,2]
[352553459,1739164238728,-500.0,0.00010958,2]
[352553460,1739164238738,-500.0,0.00010958,2]
[352553461,1739164238748,-500.0,0.00010958,2]
[352553462,1739164238757,-500.0,0.00010958,2]
[352553463,1739164238767,-524.88407616,0.00010958,2]
[352553464,1739164238776,-500.0,0.00010958,2]
[352553465,1739164238785,-627.73,0.00010958,2]
[352553466,1739164238794,-629.99702038,0.00010958,2]
[352553467,1739164238803,-500.0,0.00010958,2]
[352553468,1739164238812,-500.0,0.00010958,2]
[352553469,1739164238821,-500.0,0.00010958,2]
[352553470,1739164238831,-500.0,0.00010958,2]
[352553471,1739164238840,-500.0,0.00010958,2]
[352553472,1739164238848,-500.0,0.00010958,2]
[352553473,1739164238857,-500.0,0.00010958,2]
[352553474,1739164238867,-230.0,0.00010958,2]
[352553475,1739164238877,-500.0,0.00010958,2]
[352553476,1739164238887,-500.0,0.00010958,2]
[352553477,1739164238896,-588.98597003,0.00010958,2]
[352553478,1739164238905,-500.0,0.00010958,2]
[352553479,1739164238916,-500.0,0.00010958,2]
[352553480,1739164238925,-500.0,0.00010958,2]
[352553481,1739164238934,-500.0,0.00010958,2]
[352553482,1739164238944,-500.0,0.00010958,2]
[352553483,1739164238953,-500.0,0.00010958,2]
[352553484,1739164238963,-500.0,0.00010958,2]
[352553485,1739164238973,-502.50105116,0.00010958,2]
[352553486,1739164238982,-500.65609954,0.00010958,2]
[352553487,1739164238992,-500.0,0.00010958,2]
[352553488,1739164239002,-500.0,0.00010958,2]
[352553489,1739164239012,-500.0,0.00010958,2]
[352553490,1739164239022,-500.0,0.00010958,2]
[352553491,1739164239032,-500.0,0.00010958,2]
[352553492,1739164239042,-271.06189461,0.00010958,2]
[352553493,1739164239051,-501.74156417,0.00010958,2]
[352553494,1739164239060,-500.0,0.00010958,2]
[352553495,1739164239070,-500.0,0.00010958,2]
[352553496,1739164239080,-904.46,0.00010958,2]
[352553497,1739164239089,-601.45271623,0.00010958,2]
[352553498,1739164239099,-500.0,0.00010958,2]
[352553499,1739164239108,-500.0,0.00010958,2]
[352553500,1739164239118,-503.22223384,0.00010958,2]
[352553501,1739164239127,-500.0,0.00010958,2]
[352553502,1739164239138,-500.0,0.00010958,2]
[352553503,1739164239147,-500.0,0.00010958,2]
[352553504,1739164239156,-500.0,0.00010958,2]
[352553505,1739164239166,-500.0,0.00010958,2]
[352553506,1739164239175,-500.0,0.00010958,2]
[352553507,1739164239185,-500.0,0.00010958,2]
[352553508,1739164239195,-500.0,0.00010958,2]
[352553509,1739164239204,-545.49012341,0.00010958,2]
[352553510,1739164239214,-584.04632529,0.00010958,2]
[352553511,1739164239224,-500.0,0.00010958,2]
[352553512,1739164239233,-500.0,0.00010958,2]
[352553513,1739164239243,-303.46022281,0.00010958,2]
[352553514,1739164239257,-500.0,0.00010958,2]
[352553515,1739164239266,-500.0,0.00010958,2]
[352553516,1739164239275,-159.99052167,0.00010958,2]
[352553517,1739164239284,-500.0,0.00010958,2]
[352553518,1739164239295,-644.45954468,0.00010958,2]
[352553519,1739164239304,-411.07,0.00010958,2]
[352553520,1739164239313,-503.3472947,0.00010958,2]
[352553521,1739164239323,-502.25663102,0.00010958,2]
[352553522,1739164239333,-500.0,0.00010958,2]
[352553523,1739164239343,-500.0,0.00010958,2]
[352553524,1739164239352,-500.0,0.00010958,2]
[352553525,1739164239361,-500.0,0.00010958,2]
[352553526,1739164239371,-500.0,0.00010958,2]
[352553527,1739164239380,-500.0,0.00010958,2]
[352553528,1739164239390,-500.0,0.00010958,2]
[352553529,1739164239399,-4318.87,0.00010958,2]
[352553530,1739164239409,-500.0,0.00010958,2]
[352553531,1739164239419,-3059.6,0.00010958,2]
[352553532,1739164239428,-1759.86,0.00010958,2]
[352553533,1739164239438,-500.0,0.00010958,2]
[352553534,1739164239447,-948.76,0.00010958,2]
[352553535,1739164239457,-586.18908628,0.00010958,2]
[352553536,1739164239467,-500.0,0.00010958,2]
[352553537,1739164239476,-500.0,0.00010958,2]
[352553538,1739164239486,-500.0,0.00010958,2]
[352553539,1739164239495,-500.0,0.00010958,2]
[352553540,1739164239505,-2228.79,0.00010958,2]
[352553541,1739164239515,-568.63,0.00010958,2]
[352553542,1739164239524,-500.0,0.00010958,2]
[352553543,1739164239534,-1808.29,0.00010958,2]
[352553544,1739164239543,-500.31691697,0.00010958,2]
[352553545,1739164239553,-500.0,0.00010958,2]
[352553546,1739164239562,-500.0,0.00010958,2]
[352553547,1739164239572,-500.0,0.00010958,2]
[352553548,1739164239582,-500.0,0.00010958,2]
[352553549,1739164239594,-500.0,0.00010958,2]
[352553550,1739164239604,-949.09,0.00010958,2]
[352553551,1739164239615,-500.0,0.00010958,2]
[352553552,1739164239624,-500.0,0.00010958,2]
[352553553,1739164239633,-501.83474353,0.00010958,2]
[352553554,1739164239643,-500.0,0.00010958,2]
[352553555,1739164239653,-500.0,0.00010958,2]
[352553556,1739164239662,-500.0,0.00010958,2]
[352553557,1739164239671,-500.0,0.00010958,2]
[352553558,1739164239680,-500.0,0.00010958,2]
[352553559,1739164239689,-500.0,0.00010958,2]
[352553560,1739164239699,-883.1,0.00010958,2]
[352553561,1739164239709,-500.0,0.00010958,2]
[352553562,1739164239719,-500.0,0.00010958,2]
[352553563,1739164239860,-500.0,0.00010958,2]
[352553564,1739164239870,-500.0,0.00010958,2]
[352553565,1739164239879,-500.0,0.00010958,2]
[352553566,1739164239889,-500.0,0.00010958,2]
[352553567,1739164239899,-500.0,0.00010958,2]
[352553568,1739164239908,-500.0,0.00010958,2]
[352553569,1739164239918,-500.0,0.00010958,2]
[352553570,1739164239927,-762.23,0.00010958,2]
[352553571,1739164239936,-500.0,0.00010958,2]
[352553573,1739164239946,-6632.57,0.00010958,2]
[352553575,1739164239955,-710.66,0.00010958,2]
[352553576,1739164239964,-500.0,0.00010958,2]
[352553577,1739164239973,-500.0,0.00010958,2]
[352553578,1739164239983,-13933.42,0.00010958,2]
[352553579,1739164239992,-500.0,0.00010958,2]
[352553580,1739164240001,-503.01910502,0.00010958,2]
[352553582,1739164240011,-500.0,0.00010958,2]
[352553583,1739164240020,-500.0,0.00010958,2]
[352553584,1739164240029,-500.0,0.00010958,2]
[352553585,1739164240038,-500.0,0.00010958,2]
[352553586,1739164240047,-500.0,0.00010958,2]
[352553587,1739164240057,-500.0,0.00010958,2]
[352553588,1739164240066,-500.0,0.00010958,2]
[352553589,1739164240075,-500.0,0.00010958,2]
[352553590,1739164240084,-668.29,0.00010958,2]
[352553591,1739164240094,-500.0,0.00010958,2]
[352553593,1739164240103,-537.23,0.00010958,2]
[352553594,1739164240112,-500.0,0.00010958,2]
[352553595,1739164240121,-500.0,0.00010958,2]
[352553596,1739164240131,-500.0,0.00010958,2]
[352553597,1739164240142,-245.26451731,0.00010958,2]
[352553598,1739164240151,-500.0,0.00010958,2]
[352553599,1739164240160,-500.0,0.00010958,2]
[352553600,1739164240170,-500.0,0.00010958,2]
[352553601,1739164240179,-501.77890362,0.00010958,2]
[352553603,1739164240189,-500.0,0.00010958,2]
[352553605,1739164240198,-772.12,0.00010958,2]
[352553607,1739164240208,-500.0,0.00010958,2]
[352553608,1739164240217,-500.0,0.00010958,2]
[352553609,1739164240226,-593.47,0.00010958,2]
[352553610,1739164240235,-633.25,0.00010958,2]
[352553611,1739164240244,-1219.09,0.00010958,2]
[352553612,1739164240258,-500.0,0.00010958,2]
[352553613,1739164240267,-500.0,0.00010958,2]
[352553614,1739164240276,-512.23,0.00010958,2]
[352553615,1739164240286,-500.0,0.00010958,2]
[352553616,1739164240296,-523.46,0.00010958,2]
[352553617,1739164240306,-542.9,0.00010958,2]
[352553618,1739164240315,-501.94132729,0.00010958,2]
[352553619,1739164240325,-500.0,0.00010958,2]
[352553620,1739164240335,-500.0,0.00010958,2]
[352553621,1739164240345,-501.73638242,0.00010958,2]
[352553622,1739164240354,-501.72965101,0.00010958,2]
[352553623,1739164240363,-500.0,0.00010958,2]
[352553624,1739164240372,-500.0,0.00010958,2]
[352553625,1739164240382,-500.0,0.00010958,2]
[352553626,1739164240393,-556.3,0.00010958,2]
[352553627,1739164240403,-500.0,0.00010958,2]
[352553628,1739164240412,-500.0,0.00010958,2]
[352553629,1739164240422,-500.0,0.00010958,2]
[352553630,1739164240432,-500.0,0.00010958,2]
[352553631,1739164240441,-500.0,0.00010958,2]
[352553632,1739164240450,-793.24,0.00010958,2]
[352553633,1739164240459,-500.0,0.00010958,2]
[352553634,1739164240469,-500.0,0.00010958,2]
[352553635,1739164240478,-500.0,0.00010958,2]
[352553636,1739164240488,-500.0,0.00010958,2]
[352553637,1739164240497,-500.0,0.00010958,2]
[352553638,1739164240506,-500.0,0.00010958,2]
[352553639,1739164240515,-1623.6,0.00010958,2]
[352553640,1739164240525,-500.0,0.00010958,2]
[352553641,1739164240534,-1532.78,0.00010958,2]
[352553642,1739164240543,-500.0,0.00010958,2]
[352553643,1739164240553,-503.24962558,0.00010958,2]
[352553644,1739164240562,-500.0,0.00010958,2]
[352553645,1739164240572,-500.0,0.00010958,2]
[352553646,1739164240581,-594.98,0.00010958,2]
[352553647,1739164240591,-500.0,0.00010958,2]
[352553648,1739164240600,-500.0,0.00010958,2]
[352553649,1739164240609,-500.0,0.00010958,2]
[352553650,1739164240619,-500.0,0.00010958,2]
[352553651,1739164240628,-500.0,0.00010958,2]
[352553652,1739164240640,-500.0,0.00010958,2]
[352553653,1739164240649,-500.0,0.00010958,2]
[352553654,1739164240659,-338.57802376,0.00011095,2]
[352553655,1739164240668,-500.0,0.00011095,2]
[352553656,1739164240678,-500.0,0.00011095,2]
[352553657,1739164240688,-500.0,0.00011095,2]
[352553658,1739164240697,-196.87231661,0.00011095,2]
[352553659,1739164240706,-505.9835487,0.00011095,2]
[352553660,1739164240716,-500.0,0.00011095,2]
[352553661,1739164240725,-500.0,0.00011095,2]
[352553662,1739164240735,-321.3,0.00011095,2]
[352553663,1739164240744,-500.0,0.00011095,2]
[352553664,1739164240754,-500.0,0.00011095,2]
[352553665,1739164240763,-500.0,0.00011095,2]
[352553666,1739164240773,-516.78,0.00011095,2]
[352553667,1739164240782,-500.0,0.00011095,2]
[352553668,1739164240791,-500.0,0.00011095,2]
[352553669,1739164240800,-500.0,0.00011095,2]
[352553670,1739164240810,-340.17337902,0.00011095,2]
[352553671,1739164240819,-500.0,0.00011095,2]
[352553672,1739164240830,-500.0,0.00011095,2]
[352553673,1739164240840,-500.0,0.00011095,2]
[352553674,1739164240849,-627.73,0.00011095,2]
[352553675,1739164240859,-500.0,0.00011095,2]
[352553676,1739164240868,-500.0,0.00011095,2]
[352553677,1739164240878,-500.0,0.00011095,2]
[352553678,1739164240890,-500.0,0.00011095,2]
[352553679,1739164240900,-500.0,0.00011095,2]
[352553680,1739164240910,-500.0,0.00011095,2]
[352553681,1739164240920,-500.0,0.00011095,2]
[352553682,1739164240930,-565.10430354,0.00011095,2]
[352553683,1739164240940,-500.0,0.00011095,2]
[352553684,1739164240950,-500.0,0.00011095,2]
[352553685,1739164240959,-500.0,0.00011095,2]
[352553686,1739164240969,-500.0,0.00011095,2]
[352553687,1739164240979,-500.0,0.00011095,2]
[352553688,1739164240989,-500.0,0.00011095,2]
[352553689,1739164240999,-199.5495152,0.00011095,2]
[352553690,1739164241010,-500.0,0.00011095,2]
[352553691,1739164241020,-500.0,0.00011095,2]
[352553692,1739164241031,-904.46,0.00011095,2]
[352553693,1739164241041,-500.0,0.00011095,2]
[352553694,1739164241052,-500.0,0.00011095,2]
[352553695,1739164241062,-500.0,0.00011095,2]
[352553696,1739164241071,-500.0,0.00011095,2]
[352553697,1739164241080,-500.0,0.00011095,2]
[352553698,1739164241090,-500.0,0.00011095,2]
[352553699,1739164241100,-500.0,0.00011095,2]
[352553700,1739164241110,-500.0,0.00011095,2]
[352553701,1739164241120,-500.0,0.00011095,2]
[352553702,1739164241129,-500.0,0.00011095,2]
[352553703,1739164241140,-500.0,0.00011095,2]
[352553704,1739164241150,-500.0,0.00011095,2]
[352553705,1739164241159,-500.0,0.00011095,2]
[352553706,1739164241169,-500.0,0.00011095,2]
[352553707,1739164241179,-500.0,0.00011095,2]
[352553708,1739164241189,-468.83,0.00011095,2]
[352553709,1739164241198,-500.0,0.00011095,2]
[352553710,1739164241207,-4318.87,0.00011095,2]
[352553711,1739164241217,-500.0,0.00011095,2]
[352553712,1739164241228,-3059.6,0.00011095,2]
[352553713,1739164241238,-1759.86,0.00011095,2]
[352553714,1739164241248,-500.0,0.00011095,2]
[352553715,1739164241261,-948.76,0.00011095,2]
[352553716,1739164241271,-500.0,0.00011095,2]
[352553717,1739164241281,-500.0,0.00011095,2]
[352553718,1739164241291,-500.0,0.00011095,2]
[352553719,1739164241303,-2228.79,0.00011095,2]
[352553720,1739164241313,-568.63,0.00011095,2]
[352553721,1739164241326,-1808.29,0.00011095,2]
[352553722,1739164241339,-500.0,0.00011095,2]
[352553723,1739164241352,-500.0,0.00011095,2]
[352553724,1739164241366,-949.09,0.00011095,2]
[352553725,1739164241379,-500.0,0.00011095,2]
[352553726,1739164241396,-500.0,0.00011095,2]
[352553727,1739164241407,-500.0,0.00011095,2]
[352553728,1739164241419,-500.0,0.00011095,2]
[352553729,1739164241430,-883.1,0.00011095,2]
[352553730,1739164241444,-295.2441697,0.00011095,2]
[352553731,1739164241455,-500.0,0.00011095,2]
[352553732,1739164241467,-301.21532777,0.00011095,2]
[352553733,1739164241478,-500.0,0.00011095,2]
[352553734,1739164241490,-500.0,0.00011095,2]
[352553735,1739164241502,-500.0,0.00011095,2]
[352553736,1739164241515,-500.0,0.00011095,2]
[352553737,1739164241526,-762.23,0.00011095,2]
[352553738,1739164241537,-500.0,0.00011095,2]
[352553739,1739164241549,-6632.57,0.00011095,2]
[352553740,1739164241561,-710.66,0.00011095,2]
[352553741,1739164241573,-500.0,0.00011095,2]
[352553742,1739164241585,-13933.42,0.00011095,2]
[352553743,1739164241598,-500.0,0.00011095,2]
[352553744,1739164241609,-500.0,0.00011095,2]
[352553745,1739164241621,-501.87187501,0.00011095,2]
[352553746,1739164241633,-500.0,0.00011095,2]
[352553747,1739164241648,-500.0,0.00011095,2]
[352553748,1739164241659,-668.29,0.00011095,2]
[352553749,1739164241672,-500.0,0.00011095,2]
[352553750,1739164241685,-537.23,0.00011095,2]
[352553751,1739164241698,-501.92022201,0.00011095,2]
[352553752,1739164241710,-314.07854037,0.00011095,2]
[352553753,1739164241722,-500.0,0.00011095,2]
[352553754,1739164241734,-500.0,0.00011095,2]
[352553755,1739164241745,-500.0,0.00011095,2]
[352553756,1739164241755,-500.0,0.00011095,2]
[352553757,1739164241766,-772.12,0.00011095,2]
[352553758,1739164241777,-500.0,0.00011095,2]
[352553759,1739164241789,-593.47,0.00011095,2]
[352553760,1739164241799,-633.25,0.00011095,2]
[352553761,1739164241811,-1219.09,0.00011095,2]
[352553762,1739164241823,-500.0,0.00011095,2]
[352553763,1739164241835,-500.0,0.00011095,2]
[352553764,1739164241846,-512.23,0.00011095,2]
[352553765,1739164241859,-377.90751667,0.00011095,2]
[352553766,1739164241870,-523.46,0.00011095,2]
[352553767,1739164241882,-542.9,0.00011095,2]
[352553768,1739164241898,-500.0,0.00011095,2]
[352553769,1739164241910,-500.0,0.00011095,2]
[352553770,1739164241922,-500.0,0.00011095,2]
[352553771,1739164241934,-500.0,0.00011095,2]
[352553772,1739164241948,-500.0,0.00011095,2]
[352553773,1739164241958,-556.3,0.00011095,2]
[352553774,1739164241968,-500.0,0.00011095,2]
[352553775,1739164241979,-500.0,0.00011095,2]
[352553776,1739164241989,-500.0,0.00011095,2]
[352553777,1739164241999,-500.0,0.00011095,2]
[352553778,1739164242008,-500.0,0.00011095,2]
[352553779,1739164242019,-793.24,0.00011095,2]
[352553780,1739164242030,-500.0,0.00011095,2]
[352553781,1739164242043,-500.0,0.00011095,2]
[352553782,1739164242055,-500.0,0.00011095,2]
[352553783,1739164242067,-500.0,0.00011095,2]
[352553784,1739164242079,-1623.6,0.00011095,2]
[352553785,1739164242088,-1532.78,0.00011095,2]
[352553786,1739164242099,-500.0,0.00011095,2]
[352553787,1739164242109,-500.0,0.00011095,2]
[352553788,1739164242120,-500.0,0.00011095,2]
[352553789,1739164242130,-500.0,0.00011095,2]
[352553790,1739164242143,-502.72541824,0.00011095,2]
[352553791,1739164242156,-500.0,0.00011095,2]
[352553792,1739164242167,-500.0,0.00011095,2]
[352553793,1739164242177,-500.0,0.00011095,2]
[352553794,1739164242187,-16650.55273138,0.00011132,2]
[352553795,1739164242198,-500.0,0.00011232,2]
[352553796,1739164242208,-522.46117771,0.00011232,2]
[352553797,1739164242219,-214.38248335,0.00011232,2]
[352553798,1739164242229,-500.0,0.00011232,2]
[352553799,1739164242239,-500.0,0.00011232,2]
[352553800,1739164242252,-500.0,0.00011232,2]
[352553801,1739164242263,-500.0,0.00011232,2]
[352553802,1739164242274,-516.78,0.00011232,2]
[352553803,1739164242285,-500.0,0.00011232,2]
[352553804,1739164242297,-500.0,0.00011232,2]
[352553805,1739164242308,-500.0,0.00011232,2]
[352553806,1739164242318,-500.0,0.00011232,2]
[352553807,1739164242330,-500.0,0.00011232,2]
[352553808,1739164242340,-500.0,0.00011232,2]
[352553809,1739164242351,-627.73,0.00011232,2]
[352553810,1739164242362,-500.0,0.00011232,2]
[352553811,1739164242373,-500.0,0.00011232,2]
[352553812,1739164242392,-500.0,0.00011232,2]
[352553813,1739164242402,-500.0,0.00011232,2]
[352553814,1739164242414,-500.0,0.00011232,2]
[352553815,1739164242425,-596.18,0.00011232,2]
[352553816,1739164242435,-500.0,0.00011232,2]
[352553817,1739164242446,-506.65904746,0.00011232,2]
[352553818,1739164242458,-500.0,0.00011232,2]
[352553819,1739164242468,-500.0,0.00011232,2]
[352553820,1739164242479,-500.0,0.00011232,2]
[352553821,1739164242490,-904.46,0.00011232,2]
[352553822,1739164242501,-500.0,0.00011232,2]
[352553823,1739164242512,-500.0,0.00011232,2]
[352553824,1739164242523,-500.0,0.00011232,2]
[352553825,1739164242533,-500.0,0.00011232,2]
[352553826,1739164242544,-327.31765265,0.00011232,2]
[352553827,1739164242554,-323.92190154,0.00011232,2]
[352553828,1739164242564,-500.0,0.00011232,2]
[352553829,1739164242576,-500.0,0.00011232,2]
[352553830,1739164242586,-500.0,0.00011232,2]
[352553831,1739164242597,-4318.87,0.00011232,2]
[352553832,1739164242607,-3059.6,0.00011232,2]
[352553833,1739164242618,-1759.86,0.00011232,2]
[352553834,1739164242629,-500.0,0.00011232,2]
[352553835,1739164242642,-948.76,0.00011232,2]
[352553836,1739164242653,-500.0,0.00011232,2]
[352553837,1739164242663,-500.0,0.00011232,2]
[352553838,1739164242674,-2228.79,0.00011232,2]
[352553839,1739164242684,-568.63,0.00011232,2]
[352553840,1739164242695,-1808.29,0.00011232,2]
[352553841,1739164242705,-500.0,0.00011232,2]
[352553842,1739164242716,-500.0,0.00011232,2]
[352553843,1739164242726,-949.09,0.00011232,2]
[352553844,1739164242737,-500.0,0.00011232,2]
[352553845,1739164242747,-500.0,0.00011232,2]
[352553846,1739164242758,-500.0,0.00011232,2]
[352553847,1739164242768,-883.1,0.00011232,2]
[352553848,1739164242778,-500.0,0.00011232,2]
[352553849,1739164242789,-500.0,0.00011232,2]
[352553850,1739164242799,-500.0,0.00011232,2]
[352553851,1739164242809,-500.0,0.00011232,2]
[352553852,1739164242820,-500.0,0.00011232,2]
[352553853,1739164242830,-762.23,0.00011232,2]
[352553854,1739164242841,-6632.57,0.00011232,2]
[352553855,1739164242851,-710.66,0.00011232,2]
[352553857,1739164242861,-13933.42,0.00011232,2]
[352553858,1739164242871,-500.0,0.00011232,2]
[352553860,1739164242881,-479.52863686,0.00011232,2]
[352553862,1739164242893,-500.0,0.00011232,2]
[352553864,1739164242903,-668.29,0.00011232,2]
[352553866,1739164242914,-500.0,0.00011232,2]
[352553868,1739164242924,-537.23,0.00011232,2]
[352553870,1739164242935,-500.0,0.00011232,2]
[352553871,1739164242945,-500.0,0.00011232,2]
[352553873,1739164242956,-500.0,0.00011232,2]
[352553875,1739164242966,-772.12,0.00011232,2]
[352553877,1739164242976,-500.0,0.00011232,2]
[352553879,1739164242987,-593.47,0.00011232,2]
[352553881,1739164242997,-633.25,0.00011232,2]
[352553901,1739164243008,-1219.09,0.00011232,2]
[352553906,1739164243171,-512.23,0.00011232,2]
[352553909,1739164243183,-523.46,0.00011232,2]
[352553912,1739164243192,-542.9,0.00011232,2]
[352553914,1739164243202,-500.0,0.00011232,2]
[352553918,1739164243211,-500.0,0.00011232,2]
[352553920,1739164243220,-500.0,0.00011232,2]
[352553924,1739164243230,-500.0,0.00011232,2]
[352553926,1739164243239,-500.0,0.00011232,2]
[352553928,1739164243248,-556.3,0.00011232,2]
[352553931,1739164243262,-500.0,0.00011232,2]
[352553934,1739164243271,-500.0,0.00011232,2]
[352553936,1739164243280,-793.24,0.00011232,2]
[352553939,1739164243289,-555.38243949,0.00011232,2]
[352553942,1739164243300,-423.9140365,0.00011232,2]
[352553945,1739164243309,-500.0,0.00011232,2]
[352553948,1739164243319,-1623.6,0.00011232,2]
[352553951,1739164243330,-1532.78,0.00011232,2]
[352553954,1739164243339,-602.78200167,0.00011232,2]
[352553956,1739164243348,-500.0,0.00011232,2]
[352553959,1739164243357,-500.0,0.00011232,2]
[352553962,1739164243366,-500.0,0.00011232,2]
[352553964,1739164243375,-500.0,0.00011232,2]
[352553966,1739164243384,-500.0,0.00011232,2]
[352553968,1739164243396,-500.0,0.00011369,2]
[352553970,1739164243405,-504.19991711,0.00011369,2]
[352553972,1739164243414,-500.0,0.00011369,2]
[352553974,1739164243423,-500.0,0.00011369,2]
[352553976,1739164243433,-516.78,0.00011369,2]
[352553978,1739164243442,-500.0,0.00011369,2]
[352553980,1739164243451,-500.0,0.00011369,2]
[352553982,1739164243461,-500.0,0.00011369,2]
[352553984,1739164243471,-500.0,0.00011369,2]
[352553986,1739164243481,-500.0,0.00011369,2]
[352553988,1739164243490,-500.0,0.00011369,2]
[352553990,1739164243500,-627.73,0.00011369,2]
[352553992,1739164243509,-500.0,0.00011369,2]
[352553995,1739164243519,-500.0,0.00011369,2]
[352553996,1739164243528,-500.0,0.00011369,2]
[352553998,1739164243537,-500.0,0.00011369,2]
[352554000,1739164243546,-500.0,0.00011369,2]
[352554002,1739164243557,-500.0,0.00011369,2]
[352554004,1739164243566,-500.0,0.00011369,2]
[352554006,1739164243575,-904.46,0.00011369,2]
[352554008,1739164243585,-500.0,0.00011369,2]
[352554010,1739164243594,-500.0,0.00011369,2]
[352554012,1739164243604,-500.0,0.00011369,2]